Cogmind - Beta 16.1 @@@ ROGUE MODE // 2026.02.20 @ 19:24:48 Player: MrFartsburg Result: Destroyed by exploding Compression Vault Performance ------------- Evolutions (1) 500 Regions Visited (3) 600 Robots Destroyed (36) 180 Value Destroyed (959) 959 Prototype IDs (3) 60 Alien Tech Used (0) 0 Bonus (11) 11 TOTAL SCORE: 2310 Bonus ------- High Alert Combat Kills 11 Cogmind --------- Core Integrity 0/400 Matter 293/300 Energy 98/100 System Corruption 2% Temperature Cool (1) Movement Walking (190) Ox1 Location -9/Storage Parts ------- > --- POWER (2) -------- Improved Ion Engine > --- PROPULSION (2) --- Improved Aluminum Leg > --- UTILITY (3) ------ Medium Storage Unit Visual Processing Unit Terrain Scan Processor > --- WEAPON (2) ------- Improved Medium Laser Advanced Beam Cannon > --- INVENTORY (10) --- Improved Aluminum Leg VTOL Module Small Laser Beam Rifle Heavy Assault Rifle Plasma Cutter Peak State ------------ > --- POWER ------------ Improved Ion Engine Improved Ion Engine > --- PROPULSION ------- Improved Flight Unit Improved Flight Unit > --- UTILITY ---------- Medium Storage Unit Terrain Scan Processor > --- WEAPON ----------- Spread Laser Spread Laser > --- INVENTORY -------- Ion Engine Improved Aluminum Leg Improved Aluminum Leg Improved Aluminum Leg Improved Aluminum Leg VTOL Module Spread Laser Rocket Launcher [Rating: 18] Favorites ----------- Power Improved Ion Engine Engine Improved Ion Engine Propulsion Improved Aluminum Leg Leg Improved Aluminum Leg Wheel Wheel Flight Unit Improved Flight Unit Utility Terrain Scan Processor Device Tractor Beam Storage Medium Storage Unit Processor Terrain Scan Processor Weapon Spread Laser Energy Gun Spread Laser Energy Cannon Advanced Beam Cannon Ballistic Gun Heavy Assault Rifle Launcher Rocket Launcher Special Weapon Plasma Cutter Build | -11 -10 -9 -9 ------- Run | Yrd Mat Mat Sto Slots Evolved 2 | . . 2 . Power 1 | . . 1 . Propulsion . | . . . . Utility 1 | . . 1 . Weapon . | . . . . Parts Attached 32 | 6 5 4 17 Power 5 | 1 . 3 1 Engine 5 | 1 . 3 1 Core . | . . . . Reactor . | . . . . Propulsion 9 | 2 . 1 6 Treads . | . . . . Leg 4 | . . . 4 Wheel 3 | 2 . 1 . Hover . | . . . . Flight 2 | . . . 2 Utility 5 | 1 2 . 2 Device 1 | . . . 1 Storage 2 | 1 1 . . Processor 2 | . 1 . 1 Hackware . | . . . . Protection . | . . . . Artifact . | . . . . Weapon 13 | 2 3 . 8 Energy Gun 7 | . 2 . 5 Energy Cannon 1 | . . . 1 Ballistic Gun 3 | 2 . . 1 Ballistic Cannon . | . . . . Launcher 1 | . 1 . . Special Weapon 1 | . . . 1 Impact Weapon . | . . . . Slashing Weapon . | . . . . Piercing Weapon . | . . . . Special Melee Weapon . | . . . . Unidentified Prototypes 3 | . . . 3 Parts Lost 11 | . . . 11 Power 3 | . . . 3 Propulsion 3 | . . . 3 Utility 1 | . . . 1 Weapon 4 | . . . 4 Highest Loss Streak 7 | . . . 7 To Critical Strikes . | . . . . Average Backups 5 | 1 5 5 5 Power . | . 1 . . Propulsion 2 | . 2 3 2 Utility . | . . . . Weapon 1 | . 2 2 1 Tool/Special . | . . . . Unused Backups 4 | . 1 . 3 Power . | . . . . Propulsion 3 | . . . 3 Utility . | . . . . Weapon 1 | . 1 . . Tool/Special . | . . . . Average Slot Usage (%) 88 | . 98 88 87 Engine 17 | . 14 22 17 Leg 13 | . . . 16 Wheel 6 | . 28 22 3 Storage 11 | . 14 11 11 Processor 17 | . 12 11 18 Energy Gun 15 | . 18 11 14 Energy Cannon 1 | . . . 1 Ballistic Gun 1 | . 4 . 1 Launcher 3 | . 5 11 2 Peak Build Rating 18 | 6 10 15 18 Average Rating 14 | 4 9 12 15 On Entrance 7 | . 6 10 15 Avg Prop Armor Cover (%) 9 | . . . 9 Naked Turns . | . . . . Heaviest Build 32 | 14 22 31 32 Greatest Support 26 | 20 20 22 26 Greatest Overweight (x) 5 | 1 1 1 5 Average Overweight (x) . | . . 1 . Largest Inventory Capacity 10 | 8 10 10 10 Average Capacity 9 | 6 8 10 10 Most Carried 8 | 4 7 7 8 Average Carried 5 | 1 5 5 5 Final Capacity 10 | 8 10 10 10 Final Carried 7 | 4 5 7 6 Class Distribution -------------------- 96% | Mutant 3% | Scavenger-Mutant Dominant Class ---------------- Mutant | -10/Materials Mutant | -9/Materials Mutant | -9/Storage Resources | -11 -10 -9 -9 ----------- Run | Yrd Mat Mat Sto Matter Collected 915 | 201 81 . 633 Remotely 133 | . . . 133 Salvage Created 997 | . 45 . 952 Parts 66 | . 4 . 62 Haulers Intercepted 4 | . 1 . 3 Recyclers Shooed 2 | . . . 2 Parts Field Recycled . | . . . . Retrieved Matter . | . . . . Parts Self-Destructed . | . . . . Prevented . | . . . . Parts Restored . | . . . . Kills | -11 -10 -9 -9 ------- Run | Yrd Mat Mat Sto Combat Hostiles Destroyed 24 | . 3 . 21 Guns 12 | . . . 12 Cannons 2 | . . . 2 AOE 10 | . 3 . 7 Classes Destroyed 8 | . 3 . 5 Builder 1 | . . . 1 Hauler 4 | . 1 . 3 Recycler 4 | . . . 4 Operator 1 | . 1 . . Watcher 2 | . . . 2 Swarmer 6 | . 3 . 3 Grunt 9 | . . . 9 Sentry 9 | . . . 9 Best Kill Streak 14 | . 4 . 14 Combat Bots Only 8 | . 3 . 8 Max Kills in Single Turn 2 | . 2 . 2 Gunslinging . | . . . . Exploded 2 | . 2 . 1 Melee . | . . . . Uniques/NPCs Destroyed . | . . . . Combat | -11 -10 -9 -9 -------- Run | Yrd Mat Mat Sto Hostile Shots Fired 123 | . 4 . 119 Missed 32 | . 2 . 30 Hits 91 | . 2 . 89 Projectile 91 | . 2 . 89 Critical Strikes 3 | . . . 3 Damage Taken 1525 | . 46 . 1479 Core 448 | . . . 448 Absorbed by Shields . | . . . . Core Remaining (%) 100 | 100 100 . . Volleys Fired 72 | . 8 . 64 Largest 2 | . 2 . 2 Hottest 130 | . 130 . 130 Shots Fired 123 | . 14 . 109 Gun 84 | . 9 . 75 Cannon . | . . . . Launcher 30 | . 5 . 25 Special 9 | . . . 9 Kinetic 6 | . . . 6 Thermal 87 | . 9 . 78 Explosive 30 | . 5 . 25 Electromagnetic . | . . . . Robot Hit Streak 10 | . 8 . 10 Robot Miss Streak 9 | . 4 . 9 Penetration Max . | . . . . Secondary Targets 1 | . . . 1 Max Gunslinging Chain 1 | . . . 1 Shots Hit Robots 93 | . 9 . 84 Core Hits 108 | . 8 . 100 Critical Kills . | . . . . Critical Parts Destroyed . | . . . . Critical Strikes . | . . . . Melee Attacks . | . . . . Impact . | . . . . Slashing . | . . . . Piercing . | . . . . Sneak Attacks . | . . . . Combat Hostiles . | . . . . Follow-up Attacks . | . . . . Damage Inflicted 2441 | . 281 . 2160 Guns 907 | . 69 . 838 Cannons . | . . . . Explosions 1448 | . 212 . 1236 Melee . | . . . . Ramming 30 | . . . 30 Kinetic 74 | . . . 74 Thermal 889 | . 69 . 820 Explosive 1448 | . 212 . 1236 Electromagnetic . | . . . . Impact . | . . . . Slashing . | . . . . Piercing . | . . . . Highest Corruption 2 | . . . 2 Average Corruption 1 | . . . 1 Corruption Purged . | . . . . Corruption Blocked . | . . . . Effects 5 | . . . 5 Message Errors 1 | . . . 1 Matter Fused 1 | . . . 1 Heat Flow Errors 2 | . . . 2 Data Loss (major) 1 | . . . 1 Overload Shots . | . . . . Overflow Damage 68 | . 21 . 47 Projectiles . | . . . . Explosions 68 | . 21 . 47 Melee . | . . . . Knockbacks . | . . . . Impact . | . . . . Kinetic . | . . . . Secondary . | . . . . Self-Inflicted Damage 197 | . 30 . 167 Shots 4 | . 1 . 3 Rammed 1 | . . . 1 Targets Rammed 7 | . . . 7 Kicked 6 | . . . 6 Crushed . | . . . . Highest Temperature 429 | . 207 . 429 Average Temperature 133 | . 84 . 138 Received Heat Transfer 420 | . . . 420 Effects 3 | . . . 3 Shutdowns 2 | . . . 2 Energy Bleed 1 | . . . 1 Siege Activations . | . . . . Martial Activations . | . . . . Shielding Activations . | . . . . Robots Disrupted . | . . . . Combat Hostiles . | . . . . Robots Corrupted . | . . . . Combat Hostiles . | . . . . Parts Fried . | . . . . Impact Corruptions . | . . . . Robots Melted . | . . . . Combat Hostiles . | . . . . Parts Melted 1 | . . . 1 Heat Transferred 1348 | . 90 . 1258 Parts Sabotaged . | . . . . Parts Stolen . | . . . . Parts Stripped . | . . . . Power Chain Reactions . | . . . . Alert | -11 -10 -9 -9 ------- Run | Yrd Mat Mat Sto Maximum Alert Level 2 | . . . 2 Low Security (%) 26 | 100 100 100 10 Level 1 70 | . . . 87 Level 2 2 | . . . 2 Level 3 . | . . . . Level 4 . | . . . . Level 5 . | . . . . High Security . | . . . . Max Security . | . . . . Peak Influence 410 | . 130 50 410 Initial 50 | . . 50 5 Average 241 | . 33 29 290 Influence Increases 1036 | . 148 15 873 Destroy 0b10 Robot/C 480 | . 60 . 420 Destroy 0b10 Robot/NC 60 | . 10 . 50 Destroy Leader 162 | . 12 . 150 Successful Hack 1 | . 1 . . Disable Machine 135 | . 45 . 90 Destroy Structure 183 | . 20 . 163 Partial Spotted 15 | . . 15 . Influence Decreases 741 | . 27 121 593 Entered New Map 81 | . . 71 10 Time Decay 550 | . 27 50 473 Lost Part 110 | . . . 110 Squads Dispatched 3 | . . . 3 Investigation . | . . . . Extermination . | . . . . Reinforcement 2 | . . . 2 Assault . | . . . . Garrison 1 | . . . 1 Intercept . | . . . . Searches Triggered . | . . . . Construction Impeded . | . . . . Haulers Reinforced . | . . . . Active Scanning Responses . | . . . . Cargo Convoy Interrupts . | . . . . Stealth | -11 -10 -9 -9 --------- Run | Yrd Mat Mat Sto Distress Signals 1 | . . . 1 Communications Jammed . | . . . . Distress Signals . | . . . . Times Spotted 28 | . 3 . 25 Peak Tracking Total 4 | . 3 . 4 Tactical Retreats . | . . . . Traps | -11 -10 -9 -9 ------- Run | Yrd Mat Mat Sto Traps Triggered 5 | . . . 5 Indirectly . | . . . . Trap Hack Attempts . | . . . . Triggered . | . . . . Disarmed . | . . . . Reprogrammed . | . . . . Reused . | . . . . Traps Extracted . | . . . . Installed . | . . . . Triggered . | . . . . Machines | -11 -10 -9 -9 ---------- Run | Yrd Mat Mat Sto Machines Disabled 9 | . 3 . 6 Max in Single Turn 2 | . 1 . 2 Machines Repaired . | . . . . Machines Dismantled . | . . . . Machines Sabotaged . | . . . . Overloaded Fab Kills . | . . . . Hacking | -11 -10 -9 -9 --------- Run | Yrd Mat Mat Sto Machines Accessed 2 | . 1 . 1 Terminals 1 | . . . 1 Fabricators . | . . . . Repair Stations . | . . . . Recycling Units 1 | . 1 . . Scanalyzers . | . . . . Garrison Access . | . . . . Total Hacks 6 | . 3 . 3 Successful 3 | . 3 . . Failed 3 | . . . 3 Catastrophic . | . . . . Database Lockouts . | . . . . Manual . | . . . . Terminals 3 | . . . 3 Fabricators . | . . . . Repair Stations . | . . . . Recycling Units 3 | . 3 . . Scanalyzers . | . . . . Garrison Access . | . . . . Terminal Hacks . | . . . . Fabricator Hacks . | . . . . Repair Station Hacks . | . . . . Recycling Unit Hacks 3 | . 3 . . Recycle Component 1 | . 1 . . Process 1 | . 1 . . Report Inventory 1 | . 1 . . Scanalyzer . | . . . . Garrison Access Hacks . | . . . . Unauthorized Hacks . | . . . . Terminals . | . . . . Fabricators . | . . . . Repair Stations . | . . . . Recycling Units . | . . . . Scanalyzers . | . . . . Garrison Access . | . . . . Data Cores Recovered 1 | . 1 . . Used . | . . . . Hacking Detections 1 | . . . 1 Full Trace Events . | . . . . Feedback Events . | . . . . Feedback Blocked . | . . . . Robot Schematics Acquired . | . . . . Robots Built . | . . . . Authchips . | . . . . Time . | . . . . Total Robot Build Rating . | . . . . Part Schematics Acquired . | . . . . Parts Built . | . . . . Authchips . | . . . . Time . | . . . . Total Part Build Rating . | . . . . Part Studies Acquired . | . . . . Parts Repaired . | . . . . Time . | . . . . Parts Recycled 1 | . 1 . . Recycled Matter 189 | . 189 . . Retrieved Matter . | . . . . Retrieved Components . | . . . . Parts Scanalyzed . | . . . . Part Schematics Acquired . | . . . . Parts Damaged . | . . . . Bothacking | -11 -10 -9 -9 ------------ Run | Yrd Mat Mat Sto Used RIF Installer . | . . . . Robots Hacked . | . . . . Non-combat . | . . . . Combat . | . . . . Robot Hacks Applied . | . . . . Relay Couplers Released . | . . . . Fabnet Peak Effective % . | . . . . Robots Rewired . | . . . . Allies Hacked . | . . . . Hacks Repelled . | . . . . Allies | -11 -10 -9 -9 -------- Run | Yrd Mat Mat Sto Total Allies . | . . . . Largest Group . | . . . . Highest-Rated Group . | . . . . Highest-Rated Ally . | . . . . Total Orders . | . . . . Ally Attacks . | . . . . Total Damage . | . . . . Kills . | . . . . Allies Corrupted . | . . . . Allies Melted . | . . . . Intel | -11 -10 -9 -9 ------- Run | Yrd Mat Mat Sto Active Infowar (turns) 997 | . . . 997 Optics 997 | . . . 997 Robot Analysis Total . | . . . . Derelict Logs Recovered . | . . . . Drone Launches . | . . . . Drone Recoveries . | . . . . Exploration | -11 -10 -9 -9 ------------- Run | Yrd Mat Mat Sto Turns Passed 1753 | 52 159 116 1426 Spaces Moved 1052 | 47 149 110 746 Core 13 | 13 . . . Treads . | . . . . Legs 590 | . . . 590 Wheels 448 | 34 149 110 155 Hover . | . . . . Flight 1 | . . . 1 Fastest Speed 50 | 50 80 95 100 Average Speed 137 | 76 81 96 158 Slowest Speed 400 | 100 95 100 400 Overloaded Moves . | . . . . Propulsion Burnouts . | . . . . Robots Hopped . | . . . . Potential Cave-ins . | . . . . Cave-ins Triggered . | . . . . Exploration Rate (%) 30 | 3 26 9 83 Regions Visited 3 Branch Regions 1 Pre-discovered Areas . | . . . . Known Exits Taken . | . . . . Unknown Exits Taken 3 | 1 1 1 . Scrap Searched . | . . . . Spaces Dug . | . . . . Terrain Destroyed 208 | . 24 . 184 Melee . | . . . . Projectile . | . . . . AOE 208 | . 24 . 184 Terrain Rammed . | . . . . Walls Destroyed . | . . . . Machines Disabled . | . . . . Actions | -11 -10 -9 -9 --------- Run | Yrd Mat Mat Sto Total 1219 | 62 172 118 867 Wait 3 | . 1 . 2 Move 1049 | 46 148 109 746 Hop . | . . . . Pick Up 36 | 10 6 4 16 Fast Attach . | . . . . Attach 19 | 6 1 1 11 Detach . | . . . . Swap 22 | . 5 3 14 Drop 11 | . 3 1 7 Fire 72 | . 8 . 64 Melee . | . . . . Ram 1 | . . . 1 Kick 6 | . . . 6 Crush . | . . . . Escape Stasis . | . . . . Rewire . | . . . . Trap . | . . . . Miscellaneous . | . . . . Route ------- -11/Scrapyard -10/Materials -9/Materials -9/Storage History --------- Turn | Location | Event 32 | -11/Scrapyard | Discovered new exit (range 15) 53 | -11/Scrapyard | Entered Materials 211 | -10/Materials | Discovered new exit (range 3) 212 | -10/Materials | Entered another Materials area 212 | -9/Materials | Evolved 2 slots: Power x1, Utility x1 213 | -9/Materials | Discovered new exit (range 7) 311 | -9/Materials | Build established: Mutant 328 | -9/Materials | Entered Storage 438 | -9/Storage | Garrison activated, responded to threat 528 | -9/Storage | Destroyed 8 combat bots 1273 | -9/Storage | Core integrity fell below 50% 1312 | -9/Storage | Lost 7 parts (2p1n4w) 1368 | -9/Storage | Core integrity fell below 20% 1754 | -9/Storage | Destroyed by exploding Compression Vault Last Messages --------------- Acquired Prototype Energy Cannon. Acquired 9 matter. Identified Imp. Medium Laser. Imp. Ion Engine broken. Faulty integration triggers power surge. Acquired 10 matter. Dropped Faulty Imp. Medium Laser. Identified Adv. Beam Cannon. Acquired 10 matter. Acquired Imp. Medium Laser. BCVYMCD>PVL4YJ2GBK5DL Kicked K-01 Serf. Acquired 8 matter. Kicked R-06 Scavenger. System corrupted: Heat flow error (+290). System corrupted: Matter fused (-7). Triggered EMP Trap. A bubble of electromagnetic force engulfs the area. Compression Vault explodes. Map ----- +----------------------------------------------------+ | ?????#== " # # #???????# #?????????? | | ?????#== # = " #??# #?????????? | | ?????######### % / =#??# #?????????? | | ??????###???# # " = #??# #?????????? | | ??????""""??## # # ==#??# #?????????? | | ????##""T""?? ## #?####??# ######????? | | ???# # ########???# ##"""#????? | | ???? # ""# #??##+##"Y"###?? | | ??????"""" # Y" ###??# ##?! | | ??????"""" + "" ###### # | | ??????"""" # ########### "" # | | ???? ?# # # | | ???# # + ##?? | | ???# # # ##?? | | ???????#### ## ######### # #### | | ???????#### # # # # % % %+% | | ???? # #########+############## | | ??????"""" # # * ########## | | ?????????"" # # ## | | ??????????"" + + ## | | ???????????" # # ## """""" | | ???????????" # + [ ## "????" | | ???????????" # # ## "????" | | ??????????? + ################ """""" | | ??????????#####+##### ###??????# | | ???????????# @ # # #???????# | | ???????????# ""##????????# | | ???????????# ""#?????????######### | | ??????????"" T"#???????????????# | | ????????#"G ""#???????????????# | | ????????# "" """ ""#???????????????# " | | ????????#### """ ###???????????????# " | | ???????????# """ #?????????????????# " | | ???????????# #?????????????????# | | ???????????###Y######?????????????????# | | ?????????????##???????????????????????# | | ??????????????????????????????????????### | | ????????????????????????????????????????? | | ????????????????????????????????????????? | | ????????????????????????????????????????? | | ????????????????????????????????????????? | | | | | | | | | | | | | | | | | | | +----------------------------------------------------+ Best States ------------- Heat Dissipation 28 Energy Generation 19 Energy Capacity 430 Matter Stores 300 Matter Capacity 300 Sight Range 18 Terrain Scan Density 85 Evasion (%) 55 Item Schematics ----------------- None Robot Schematics ------------------ None Fabricated ------------ Nothing Repaired ---------- Nothing Studied --------- None Alien Tech Used ----------------- None Achievements -------------- None Challenges ------------ None Game ------ Seed VoltaicVariableBuckler Manual? 0 Play Time 00:24:04 Cumulative 18.4 hours Start 2026.02.20 @ 19:00:38 End 2026.02.20 @ 19:24:48 Sessions 1 Manual Loads 0 Difficulty Rogue Special Mode None Game No. 33 Rogue 33 Adventurer 0 Explorer 0 Win Type - Total 0 Types 0/0/0/0/0/0/0/0/0/0 Lore% 9 Gallery% 18 Achievement% 12 Wizard Run 0 Options --------- Layout 1 ASCII 0 Keyboard 0 Movement Numpad Keybinds 0 Fullscreen 1 Font 32/SmallcapsGlow Map View 50x35 Zoom Use 0% Tactical HUD 0 Map Filters NONE Filters NONE Steam 1 RUN: 72decb06-6f9c-44f5-94b0-0b4bbea44c6e